fUST/lending_fUST_20240105
["ID","MTS","AMOUNT","RATE_DAILY","PERIOD"]
[310280178,1704459062545,-1290.0,0.00037999,2]
[310280179,1704459062556,-1290.0,0.00037999,2]
[310280180,1704459062565,-1290.0,0.00037999,2]
[310280181,1704459062574,-1290.0,0.00037999,2]
[310280182,1704459062584,-1290.0,0.00037999,2]
[310280183,1704459062593,-1290.0,0.00037999,2]
[310280184,1704459062602,-1290.0,0.00037999,2]
[310280185,1704459062611,-1290.0,0.00037999,2]
[310280186,1704459062620,-1290.0,0.00037999,2]
[310280187,1704459062630,-1290.0,0.00037999,2]
[310280188,1704459062639,-64285.44776282,0.00037999,2]
[310280189,1704459062649,-500.0,0.00037999,2]
[310280190,1704459062661,-321801.21725396,0.00038,10]
[310280191,1704459062671,-5432.20128895,0.00038,30]
[310280192,1704459062680,-275.03630129,0.00038,30]
[310280193,1704459062689,-2140.58677585,0.00038,4]
[310280194,1704459062699,-379.58002868,0.00038,4]
[310280195,1704459062709,-500.0,0.00038,5]
[310280196,1704459062718,-567607.93009476,0.00038,10]
[310280197,1704459062727,-1707074.20286437,0.00038,7]
[310280198,1704459062738,-38673.35359139,0.00038,10]
[310280199,1704459062749,-300.0,0.00038,19]
[310280200,1704459062759,-500.0,0.00038,7]
[310280201,1704459062768,-1500.0,0.00038,2]
[310280202,1704459062777,-200.0,0.00038,9]
[310280203,1704459062787,-4000.00264867,0.00038,15]
[310280204,1704459062797,-500.0,0.00038,2]
[310280205,1704459062808,-500.0,0.00038,2]
[310280206,1704459062818,-500.0,0.00038,2]
[310280207,1704459062828,-500.0,0.00038,2]
[310280208,1704459062840,-500.0,0.00038,2]
[310280209,1704459062850,-621.89,0.00038034,7]
[310280210,1704459062860,-593.89,0.00038034,7]
[310280211,1704459062935,-839.26,0.00038034,7]
[310280212,1704459062945,-1430.28,0.00038034,7]
[310280213,1704459062956,-500.0,0.00038034,7]
[310280214,1704459062969,-503.12759071,0.00038115,7]
[310280215,1704459062981,-17347.69,0.00038125,7]
[310280216,1704459062991,-500.0,0.00038125,7]
[310280217,1704459063001,-1339.82,0.00038136,7]
[310280218,1704459063010,-500.0,0.00038136,7]
[310280219,1704459063020,-594.91,0.00038136,7]
[310280220,1704459063030,-1048.45,0.00038136,7]
[310280221,1704459063039,-500.0,0.00038136,7]
[310280222,1704459063048,-2383.79,0.00038136,7]
[310280223,1704459063058,-3018.36,0.00038136,7]
[310280224,1704459063067,-305.12640453,0.00038136,7]
[310280225,1704459063077,-582.89,0.00038136,7]
[310280226,1704459063086,-583.89,0.00038136,7]
[310280227,1704459063096,-3608.46,0.00038136,7]
[310280228,1704459063106,-500.0,0.00038136,7]
[310280229,1704459063115,-500.0,0.00038136,7]
[310280230,1704459063124,-1222.67,0.00038136,7]
[310280231,1704459063134,-412.758203,0.00038136,2]
[310280232,1704459063143,-500.0,0.00038146,7]
[310280233,1704459063153,-357.28279559,0.00038146,7]
[310280234,1704459063162,-833.86,0.00038146,7]
[310280235,1704459063171,-624.43520531,0.00038146,7]
[310280236,1704459063180,-500.0,0.00038146,7]
[310280237,1704459063191,-525.52,0.00038146,7]
[310280238,1704459063200,-500.0,0.00038146,7]
[310280239,1704459063210,-500.0,0.00038146,7]
[310280240,1704459063220,-500.0,0.00038146,7]
[310280241,1704459063230,-1581.41,0.00038156,7]
[310280242,1704459063241,-500.0,0.00038156,7]
[310280243,1704459063251,-500.0,0.00038156,7]
[310280244,1704459063261,-55436.15,0.00038156,3]
[310280245,1704459063272,-532.45,0.00038156,7]
[310280246,1704459063282,-5031.28747834,0.00038156,7]
[310280247,1704459063488,-1270.2800959,0.00035883,4]
[310280248,1704459063499,-4330.13,0.00036786,7]
[310280249,1704459063511,-500.0,0.0003706,7]
[310280250,1704459063523,-4330.13,0.0003706,7]
[310280251,1704459063533,-500.0,0.00037334,7]
[310280252,1704459063543,-4330.13,0.00037334,7]
[310280253,1704459063554,-500.0,0.00037608,7]
[310280254,1704459063563,-4330.13,0.00037608,7]
[310280255,1704459063573,-500.0,0.00037882,7]
[310280256,1704459063583,-4330.13,0.00037882,7]
[310280257,1704459063594,-3412.26252166,0.00038156,7]
[310280258,1704459063602,-214.58179115,0.00038156,7]
[310280259,1704459063612,-425.09610165,0.00038156,7]
[310280260,1704459063624,-11950.42389835,0.00038156,7]
[310280261,1704459063633,-500.0,0.00038156,7]
[310280262,1704459063643,-1494.5,0.00038156,7]
[310280263,1704459063653,-734.91,0.00038156,7]
[310280264,1704459063663,-500.0,0.00038156,7]
[310280265,1704459063672,-500.0,0.00038156,7]
[310280266,1704459063682,-4330.13,0.00038156,7]
[310280267,1704459063691,-1296.28,0.00038176,7]
[310280268,1704459063701,-721.14073406,0.00038176,7]
[310280269,1704459063712,-1933.99739832,0.00038176,7]
[310280270,1704459063723,-281.63721999,0.00038176,7]
[310280273,1704459064304,155.37984221,0.0001854,2]
[310280274,1704459078035,342.0768725,0.0001854,2]
[310280275,1704459084093,3827.77185463,0.0001854,2]
[310280276,1704459100039,342.0768725,0.0001854,2]
[310280277,1704459102108,1175.27405301,0.0001854,2]
[310280278,1704459116049,342.0768725,0.0001854,2]
[310280279,1704459136044,406.39491092,0.0001854,2]
[310280311,1704459583835,512.58158862,0.00019979,2]
[310280313,1704459617443,200.0,0.00022652,7]
[310280315,1704459681961,974.23467953,0.00018531,2]
[310280341,1704459891287,161.666823,0.00019586,2]
[310280346,1704459976397,7963.39157307,0.00019582,2]
[310280347,1704459976428,16936.60842693,0.00019582,2]
[310280348,1704460061337,285.265746,0.0002,2]
[310280349,1704460061686,285.265746,0.0002,2]
[310280350,1704460062031,285.265746,0.0002,2]
[310280351,1704460062383,285.265746,0.0002,2]
[310280352,1704460062881,285.265746,0.0002,2]
[310280366,1704460230897,2144.41715617,0.00020163,2]
[310280399,1704460232500,-1329.09184848,0.00020163,2]
[310280400,1704460232510,-1211.64702523,0.00020558,2]
[310280402,1704460232520,-260.04425413,0.00020559,2]
[310280404,1704460232529,-154.78330338,0.0002056,2]
[310280405,1704460232538,-154.78330338,0.00020561,4]
[310280407,1704460232548,-20811.63739219,0.00020574,2]
[310280409,1704460232557,-26389.64216715,0.00020575,2]
[310280411,1704460232567,-154.87609912,0.00020578,2]
[310280413,1704460232576,-2805.17049391,0.00020582,2]
[310280415,1704460232585,-2990.69030985,0.00020583,2]
[310280417,1704460232595,-561.91726826,0.00020587,2]
[310280419,1704460232606,-2027.50790733,0.00020589,2]
[310280421,1704460232616,-2093.31958867,0.00020591,2]
[310280423,1704460232626,-1087.2919038,0.00020597,2]
[310280425,1704460232636,-300.99259591,0.00020597,2]
[310280427,1704460232646,-302.2999368,0.00020597,2]
[310280429,1704460232656,-265.20914203,0.00020597,2]
[310280431,1704460232666,-273.22384269,0.00020597,2]
[310280433,1704460232675,-179.01796904,0.00020598,2]
[310280435,1704460232684,-6360.31255279,0.000206,2]
[310280545,1704460239818,-18528.8835467,0.000206,2]
[310280547,1704460239827,-618.72371927,0.000206,2]
[310280549,1704460239836,-154.98055564,0.000206,2]
[310280551,1704460239845,-456.95480321,0.00025,2]
[310280553,1704460239854,-1321.39393737,0.000297,2]
[310280555,1704460239864,-1200.0,0.0003,4]
[310280557,1704460239873,-392.66928205,0.0003,4]
[310280559,1704460239882,-640.57918296,0.0003,4]
[310280561,1704460239891,-169.88039227,0.0003,4]
[310280563,1704460239900,-1225.77149332,0.0003,14]
[310280565,1704460239910,-150.77383924,0.00030409,30]
[310280567,1704460239919,-16073.61,0.0003099,3]
[310280569,1704460239928,-68590.19593527,0.00031,4]
[310280570,1704460239937,-150.77383924,0.00031029,7]
[310280572,1704460239945,-150.77383924,0.00031662,4]
[310280574,1704460239955,-150.77383924,0.00032309,2]
[310280575,1704460239964,-153.0,0.00033,2]
[310280577,1704460239974,-1000.0,0.00034,7]
[310280578,1704460239984,-2000.0,0.000345,2]
[310280580,1704460239992,-2192.759532,0.00034521,2]
[310280582,1704460240001,-334.45177508,0.0003498,2]
[310280583,1704460240010,-500.0,0.0003498,2]
[310280585,1704460240020,-459.74847329,0.0003498,2]
[310280587,1704460240029,-500.0,0.0003498,2]
[310280588,1704460240038,-253.13949888,0.0003498,2]
[310280589,1704460240051,-243.52646158,0.0003498,2]
[310280590,1704460240062,-13303.66907742,0.00034981,2]
[310280592,1704460240071,-2650.27448344,0.00035,4]
[310280594,1704460240081,-474.80514366,0.00035,4]
[310280595,1704460240091,-3538.87543689,0.00035,2]
[310280597,1704460240100,-355.91910944,0.00035,14]
[310280599,1704460240110,-4280.0215874,0.00035,4]
[310280600,1704460240119,-590.28475071,0.00035,2]
[310280602,1704460240130,-154.78330338,0.00035,4]
[310280603,1704460240140,-471.35086323,0.00035367,2]
[310280605,1704460240160,-2175.91932341,0.00035367,2]
[310280607,1704460240171,-477.0,0.00035452,2]
[310280609,1704460240181,-47006.99796797,0.000355,14]
[310280611,1704460240190,-500.0,0.00035616,2]
[310280613,1704460240199,-513.52240526,0.00035616,14]
[310280615,1704460240209,-837.38,0.00035616,7]
[310280617,1704460240218,-500.0,0.00035616,7]
[310280618,1704460240228,-500.0,0.00035616,7]
[310280619,1704460240238,-500.0,0.00035616,7]
[310280620,1704460240248,-500.0,0.00035616,7]
[310280621,1704460240258,-500.0,0.00035616,7]
[310280622,1704460240267,-500.0,0.00035616,7]
[310280623,1704460240277,-500.0,0.00035616,7]
[310280624,1704460240286,-674.65,0.00035616,7]
[310280625,1704460240295,-988.38,0.00035616,7]
[310280626,1704460240305,-500.0,0.00035616,7]
[310280627,1704460240314,-655.28,0.00035616,7]
[310280628,1704460240323,-500.0,0.00035616,7]
[310280629,1704460240332,-1886.48,0.00035616,7]
[310280630,1704460240342,-1489.87,0.00035616,7]
[310280631,1704460240351,-500.0,0.00035616,7]
[310280632,1704460240360,-500.0,0.00035616,7]
[310280633,1704460240369,-5277.21,0.00035616,7]
[310280634,1704460240379,-500.0,0.00035616,7]
[310280635,1704460240388,-500.0,0.00035616,7]
[310280636,1704460240398,-56343.51,0.00035616,3]
[310280637,1704460240407,-10883.72,0.00035616,7]
[310280638,1704460240416,-2255.28,0.00035616,7]
[310280639,1704460240426,-500.0,0.00035616,7]
[310280640,1704460240435,-500.0,0.00035616,7]
[310280641,1704460240444,-7734.7,0.00035616,7]
[310280642,1704460240454,-934.06,0.00035616,7]
[310280643,1704460240463,-500.0,0.00035616,7]
[310280644,1704460240473,-500.0,0.00035616,7]
[310280645,1704460240482,-810.18,0.00035616,7]
[310280646,1704460240491,-500.0,0.00035616,7]
[310280647,1704460240500,-764.17,0.00035616,7]
[310280648,1704460240510,-333.84944928,0.00035616,7]
[310280649,1704460240519,-500.0,0.00035616,7]
[310280650,1704460240529,-2706.33,0.00035616,7]
[310280651,1704460240538,-4536.36,0.00035616,7]
[310280652,1704460240548,-181.87854,0.00035616,120]
[310280653,1704460240557,-2192.759532,0.00035798,2]
[310280654,1704460240567,-676.09716813,0.00035813,4]
[310280655,1704460240577,-155.49871026,0.00035852,2]
[310280656,1704460240587,-2011.40113899,0.00035853,2]
[310280657,1704460240595,-199.11669018,0.00035863,3]
[310280658,1704460240604,-500.0,0.00035863,7]
[310280659,1704460240614,-1379.02,0.00035863,7]
[310280660,1704460240624,-500.0,0.00035863,7]
[310280661,1704460240634,-1055.33,0.00035863,7]
[310280662,1704460240643,-1887.04,0.00035863,7]
[310280663,1704460240653,-543.09,0.00035863,7]
[310280664,1704460240662,-1808.2,0.00035863,7]
[310280665,1704460240671,-406.51529127,0.00035863,4]
[310280666,1704460240680,-462.84408145,0.00035863,4]
[310280669,1704460240690,-500.0,0.00035863,4]
[310280670,1704460240700,-193.37474437,0.00035863,4]
[310280671,1704460240709,-500.0,0.00035863,4]
[310280672,1704460240719,-390.33383901,0.00035863,4]
[310280673,1704460240729,-211.02067321,0.00035863,4]
[310280674,1704460240739,-197.03505998,0.00035863,7]
[310280676,1704460240748,-564.85462416,0.00035863,7]
[310280677,1704460240759,-557.64484619,0.00035863,7]
[310280678,1704460240768,-139573.93011349,0.00035864,2]
[310280679,1704460240777,-2590.70958794,0.00035882,4]
[310280680,1704460240787,-3764.70893398,0.00035882,5]
[310280681,1704460240797,-849.02914458,0.00035882,4]
[310280682,1704460240806,-4801.41717978,0.00035882,4]
[310280683,1704460240967,-199.03386478,0.0003589,2]
[310280684,1704460240986,-837.38,0.0003589,7]
[310280685,1704460240995,-500.0,0.0003589,7]
[310280686,1704460241004,-500.0,0.0003589,7]
[310280687,1704460241014,-500.0,0.0003589,7]
[310280688,1704460241023,-322.38104457,0.0003589,7]
[310280689,1704460241032,-500.0,0.0003589,7]
[310280690,1704460241042,-500.0,0.0003589,7]
[310280691,1704460241052,-500.0,0.0003589,7]
[310280692,1704460241062,-674.65,0.0003589,7]
[310280693,1704460241072,-988.38,0.0003589,7]
[310280694,1704460241082,-500.0,0.0003589,7]
[310280695,1704460241091,-655.28,0.0003589,7]
[310280696,1704460241100,-500.0,0.0003589,7]
[310280697,1704460241109,-1886.48,0.0003589,7]
[310280698,1704460241118,-1489.87,0.0003589,7]
[310280699,1704460241129,-500.0,0.0003589,7]
[310280700,1704460241138,-500.0,0.0003589,7]
[310280701,1704460241148,-5277.21,0.0003589,7]
[310280703,1704460241161,-500.0,0.0003589,7]
[310280704,1704460241171,-500.0,0.0003589,7]
[310280705,1704460241180,-56343.51,0.0003589,3]
[310280706,1704460241190,-10883.72,0.0003589,7]
[310280707,1704460241199,-2255.28,0.0003589,7]
[310280708,1704460241209,-224.09206611,0.0003589,7]
[310280710,1704460241218,-500.0,0.0003589,7]
[310280712,1704460241234,-7734.7,0.0003589,7]
[310280713,1704460241243,-934.06,0.0003589,7]
[310280714,1704460241254,-500.0,0.0003589,7]
[310280715,1704460241263,-500.0,0.0003589,7]
[310280716,1704460241274,-810.18,0.0003589,7]
[310280717,1704460241283,-500.0,0.0003589,7]
[310280718,1704460241294,-764.17,0.0003589,7]
[310280719,1704460241304,-500.0,0.0003589,7]
[310280720,1704460241313,-2706.33,0.0003589,7]
[310280721,1704460241323,-4536.36,0.0003589,7]
[310280722,1704460241332,-150.77383924,0.00035898,2]
[310280723,1704460241343,-250.11570644,0.00035898,2]
[310280724,1704460241352,-154.81422293,0.000359,4]
[310280725,1704460241361,-515.4,0.00035932,7]
[310280726,1704460241371,-500.0,0.00035932,7]
[310280727,1704460241380,-655.13,0.00035932,7]
[310280728,1704460241389,-500.0,0.00035932,7]
[310280729,1704460241398,-500.0,0.00035933,7]
[310280730,1704460241408,-500.0,0.00035933,7]
[310280731,1704460241418,-500.0,0.00035933,7]
[310280732,1704460241427,-1095.31,0.00035933,7]
[310280733,1704460241437,-500.0,0.00035933,7]
[310280734,1704460241446,-500.0,0.00035933,7]
[310280735,1704460241456,-213.87387846,0.00035943,4]
[310280736,1704460241467,-559.5,0.00035944,7]
[310280737,1704460241482,-953.52,0.00035944,7]
[310280738,1704460241492,-500.0,0.00035944,7]
[310280739,1704460241501,-500.0,0.00035964,7]
[310280740,1704460241512,-547.67,0.00035964,7]
[310280741,1704460241522,-594.91872802,0.00035964,7]
[310280742,1704460241531,-500.0,0.00035964,7]
[310280743,1704460241541,-500.0,0.00035964,7]
[310280744,1704460241551,-500.0,0.00035964,7]
[310280745,1704460241561,-567.42,0.00035964,7]
[310280746,1704460241571,-500.0,0.00035964,2]
[310280747,1704460241580,-500.0,0.00035964,7]
[310280748,1704460241589,-500.0,0.00035964,7]
[310280749,1704460241599,-945.56,0.00035964,7]
[310280750,1704460241609,-500.0,0.00035964,7]
[310280751,1704460241617,-555.91,0.00035964,7]
[310280752,1704460241627,-500.0,0.00036015,7]
[310280753,1704460241637,-500.0,0.00036015,7]
[310280754,1704460241646,-500.0,0.00036015,7]
[310280755,1704460241656,-500.0,0.00036015,7]
[310280756,1704460241666,-500.0,0.00036015,7]
[310280757,1704460241675,-234.20030341,0.00036098,7]
[310280758,1704460241685,-243.90917476,0.00036098,7]
[310280759,1704460241694,-198.36174919,0.00036098,7]
[310280760,1704460241703,-408.26550491,0.00036098,7]
[310280761,1704460241713,-500.0,0.00036098,7]
[310280762,1704460241724,-11054.3547246,0.00036099,2]
[310280763,1704460241734,-202.09169831,0.00036099,2]
[310280764,1704460241744,-399.62154004,0.00036137,7]
[310280765,1704460241753,-1379.02,0.00036137,7]
[310280766,1704460241763,-500.0,0.00036137,7]
[310280767,1704460241772,-1055.33,0.00036137,7]
[310280768,1704460241782,-1887.04,0.00036137,7]
[310280769,1704460241791,-543.09,0.00036137,7]
[310280770,1704460241801,-1808.2,0.00036137,7]
[310280771,1704460241811,-837.38,0.00036164,7]
[310280772,1704460241819,-500.0,0.00036164,7]
[310280773,1704460241829,-500.0,0.00036164,7]
[310280774,1704460241838,-500.0,0.00036164,7]
[310280775,1704460241847,-537.72586878,0.00036164,7]
[310280776,1704460241856,-500.0,0.00036164,7]
[310280778,1704460241866,-500.0,0.00036164,7]
[310280779,1704460241875,-674.65,0.00036164,7]
[310280781,1704460241884,-988.38,0.00036164,7]
[310280782,1704460241893,-500.0,0.00036164,7]
[310280783,1704460241903,-655.28,0.00036164,7]
[310280784,1704460241912,-500.0,0.00036164,7]
[310280785,1704460241921,-1886.48,0.00036164,7]
[310280787,1704460241932,-1489.87,0.00036164,7]
[310280788,1704460241941,-500.0,0.00036164,7]
[310280789,1704460241951,-500.0,0.00036164,7]
[310280790,1704460241961,-5277.21,0.00036164,7]
[310280791,1704460241974,-500.0,0.00036164,7]
[310280792,1704460241984,-500.0,0.00036164,7]
[310280793,1704460241993,-56343.51,0.00036164,3]
[310280794,1704460242003,-9580.74032976,0.00036164,7]
[310280795,1704460242022,-1302.97967024,0.00036164,7]
[310280796,1704460242032,-2255.28,0.00036164,7]
[310280797,1704460242042,-500.0,0.00036164,7]
[310280798,1704460242057,-7734.7,0.00036164,7]
[310280799,1704460242068,-520.40267573,0.00036164,7]
[310280801,1704460242080,-413.65732427,0.00036164,7]
[310280802,1704460242090,-400.38861368,0.00036164,7]
[310280803,1704460242100,-500.0,0.00036164,7]
[310280804,1704460242109,-810.18,0.00036164,7]
[310280805,1704460242118,-500.0,0.00036164,7]
[310280806,1704460242128,-602.22769048,0.00036164,7]
[310280859,1704460243549,-3766.68,0.0003099,3]
[310280860,1704460243562,-10936.2146927,0.0003099,3]
[310280861,1704460243573,-510.85,0.0003099,3]
[310280862,1704460243585,-8065.09411673,0.0003099,3]
[310281011,1704460246514,-761.30515485,0.0003099,3]
[310281014,1704460246526,-1032.80040351,0.0003099,3]
[310281016,1704460246538,-12597.00563221,0.0003099,3]
[310281019,1704460246572,-864.83,0.00035616,7]
[310281021,1704460246582,-864.83,0.0003589,7]
[310281023,1704460246595,-161.94230952,0.00036164,7]
[310281024,1704460246606,-500.0,0.00036164,7]
[310281026,1704460246616,-2706.33,0.00036164,7]
[310281027,1704460246626,-2774.65617793,0.00036164,7]
[310281028,1704460246644,-154.78330338,0.00030989,4]
[310281029,1704460246653,-1761.70382207,0.00036164,7]
[310281030,1704460246663,-864.83,0.00036164,7]
[310281031,1704460246673,-515.4,0.00036206,7]
[310281032,1704460246684,-500.0,0.00036206,7]
[310281033,1704460246694,-655.13,0.00036206,7]
[310281034,1704460246705,-500.0,0.00036206,7]
[310281035,1704460246716,-500.0,0.00036207,7]
[310281036,1704460246728,-500.0,0.00036207,7]
[310281037,1704460246739,-500.0,0.00036207,7]
[310281038,1704460246749,-1095.31,0.00036207,7]
[310281039,1704460246758,-500.0,0.00036207,7]
[310281040,1704460246768,-500.0,0.00036207,7]
[310281041,1704460246778,-559.5,0.00036218,7]
[310281042,1704460246789,-953.52,0.00036218,7]
[310281043,1704460246799,-500.0,0.00036218,7]
[310281044,1704460246809,-500.0,0.00036238,7]
[310281045,1704460246818,-547.67,0.00036238,7]
[310281046,1704460246827,-539.49701401,0.00036238,7]
[310281047,1704460246836,-500.0,0.00036238,7]
[310281048,1704460246847,-500.0,0.00036238,7]
[310281049,1704460246858,-567.42,0.00036238,7]
[310281050,1704460246868,-500.0,0.00036238,2]
[310281051,1704460246878,-500.0,0.00036238,7]
[310281052,1704460246887,-500.0,0.00036238,7]
[310281053,1704460246898,-945.56,0.00036238,7]
[310281054,1704460246909,-500.0,0.00036238,7]
[310281055,1704460246919,-555.91,0.00036238,7]
[310281056,1704460246928,-155.0,0.0003626,2]
[310281057,1704460246937,-500.0,0.00036289,7]
[310281058,1704460246947,-500.0,0.00036289,7]
[310281059,1704460246957,-500.0,0.00036289,7]
[310281060,1704460246967,-500.0,0.00036289,7]
[310281061,1704460246978,-500.0,0.00036289,7]
[310281062,1704460246988,-1379.02,0.00036411,7]
[310281063,1704460246999,-500.0,0.00036411,7]
[310281064,1704460247009,-1055.33,0.00036411,7]
[310281065,1704460247017,-1887.04,0.00036411,7]
[310281066,1704460247027,-543.09,0.00036411,7]
[310281067,1704460247037,-1808.2,0.00036411,7]
[310281068,1704460247048,-837.38,0.00036438,7]
[310281069,1704460247058,-535.99011632,0.00036438,7]
[310281070,1704460247067,-500.0,0.00036438,7]
[310281071,1704460247077,-500.0,0.00036438,7]
[310281072,1704460247087,-500.0,0.00036438,7]
[310281073,1704460247097,-178.28440014,0.00036438,7]
[310281074,1704460247107,-674.65,0.00036438,7]
[310281075,1704460247117,-500.0,0.00036438,7]
[310281076,1704460247128,-655.28,0.00036438,7]
[310281077,1704460247137,-500.0,0.00036438,7]
[310281078,1704460247147,-1886.48,0.00036438,7]
[310281079,1704460247157,-1489.87,0.00036438,7]
[310281080,1704460247168,-500.0,0.00036438,7]
[310281081,1704460247177,-500.0,0.00036438,7]
[310281082,1704460247187,-5277.21,0.00036438,7]
[310281083,1704460247197,-500.0,0.00036438,7]
[310281084,1704460247207,-500.0,0.00036438,7]
[310281085,1704460247217,-56343.51,0.00036438,3]
[310281086,1704460247226,-10883.72,0.00036438,7]
[310281087,1704460247236,-2255.28,0.00036438,7]
[310281088,1704460247245,-500.0,0.00036438,7]
[310281089,1704460247255,-7734.7,0.00036438,7]
[310281090,1704460247266,-934.06,0.00036438,7]
[310281091,1704460247276,-500.0,0.00036438,7]
[310281092,1704460247287,-810.18,0.00036438,7]
[310281093,1704460247297,-501.35168108,0.00036438,7]
[310281094,1704460247308,-764.17,0.00036438,7]
[310281095,1704460247318,-500.0,0.00036438,7]
[310281096,1704460247328,-2706.33,0.00036438,7]
[310281097,1704460247338,-4536.36,0.00036438,7]
[310281098,1704460247349,-864.83,0.00036438,7]
[310281099,1704460247358,-1271.86892421,0.00036458,2]
[310281100,1704460247368,-515.4,0.0003648,7]
[310281101,1704460247379,-500.0,0.0003648,7]
[310281102,1704460247388,-655.13,0.0003648,7]
[310281103,1704460247398,-500.0,0.0003648,7]
[310281104,1704460247408,-500.0,0.00036481,7]
[310281105,1704460247419,-500.0,0.00036481,7]
[310281106,1704460247430,-500.0,0.00036481,7]
[310281107,1704460247442,-1095.31,0.00036481,7]
[310281108,1704460247453,-500.0,0.00036481,7]
[310281109,1704460247464,-500.0,0.00036481,7]
[310281110,1704460247473,-559.5,0.00036492,7]
[310281111,1704460247484,-953.52,0.00036492,7]
[310281112,1704460247493,-500.0,0.00036492,7]
[310281113,1704460247503,-301.54767848,0.00036502,4]
[310281114,1704460247512,-500.0,0.00036512,7]
[310281115,1704460247522,-547.67,0.00036512,7]
[310281116,1704460247532,-500.0,0.00036512,7]
[310281117,1704460247543,-500.0,0.00036512,7]
[310281118,1704460247553,-567.42,0.00036512,7]
[310281119,1704460247563,-500.0,0.00036512,2]
[310281120,1704460247572,-500.0,0.00036512,7]
[310281121,1704460247583,-500.0,0.00036512,7]
[310281122,1704460247592,-945.56,0.00036512,7]
[310281123,1704460247602,-500.0,0.00036512,7]
[310281124,1704460247613,-555.91,0.00036512,7]
[310281125,1704460247622,-500.0,0.00036563,7]
[310281126,1704460247632,-500.0,0.00036563,7]
[310281127,1704460247643,-500.0,0.00036563,7]
[310281128,1704460247653,-500.0,0.00036563,7]
[310281129,1704460247662,-500.0,0.00036563,7]
[310281130,1704460247673,-1379.02,0.00036685,7]
[310281131,1704460247683,-500.0,0.00036685,7]
[310281132,1704460247694,-1055.33,0.00036685,7]
[310281133,1704460247705,-1887.04,0.00036685,7]
[310281134,1704460247714,-543.09,0.00036685,7]
[310281135,1704460247726,-1808.2,0.00036685,7]
[310281136,1704460247738,-837.38,0.00036712,7]
[310281137,1704460247748,-500.0,0.00036712,7]
[310281138,1704460247759,-500.0,0.00036712,7]
[310281139,1704460247769,-500.0,0.00036712,7]
[310281140,1704460247779,-674.65,0.00036712,7]
[310281141,1704460247789,-500.0,0.00036712,7]
[310281142,1704460247799,-655.28,0.00036712,7]
[310281143,1704460247810,-500.0,0.00036712,7]
[310281144,1704460247820,-1886.48,0.00036712,7]
[310281145,1704460247927,-1489.87,0.00036712,7]
[310281146,1704460247938,-500.0,0.00036712,7]
[310281147,1704460247947,-500.0,0.00036712,7]
[310281148,1704460247956,-5277.21,0.00036712,7]
[310281149,1704460247966,-500.0,0.00036712,7]
[310281150,1704460247977,-500.0,0.00036712,7]
[310281151,1704460247988,-56343.51,0.00036712,3]
[310281152,1704460247997,-10883.72,0.00036712,7]
[310281153,1704460248006,-2255.28,0.00036712,7]
[310281154,1704460248016,-500.0,0.00036712,7]
[310281155,1704460248025,-7734.7,0.00036712,7]
[310281156,1704460248035,-934.06,0.00036712,7]
[310281157,1704460248045,-500.0,0.00036712,7]
[310281158,1704460248056,-810.18,0.00036712,7]
[310281159,1704460248065,-764.17,0.00036712,7]
[310281160,1704460248074,-500.0,0.00036712,7]
[310281161,1704460248084,-2706.33,0.00036712,7]